bitfinex/quotes_BTCUSD_20250902
["timestamp","ask_amount","ask_price","bid_price","bid_amount"]
[1756789556793,5.93158642,110380.0,110370.0,1e-08]
[1756789557011,6.02350241,110380.0,110370.0,1e-08]
[1756789557435,6.02659241,110380.0,110370.0,1e-08]
[1756789558286,6.12208241,110380.0,110370.0,1e-08]
[1756789558482,6.02350241,110380.0,110370.0,1e-08]
[1756789558635,6.02346241,110380.0,110370.0,1e-08]
[1756789559200,5.77818642,110380.0,110370.0,1e-08]
[1756789559418,5.93150642,110380.0,110370.0,1e-08]
[1756789560374,5.99437277,110380.0,110370.0,0.00509001]
[1756789560594,5.99641277,110380.0,110370.0,1e-08]
[1756789561014,5.99949277,110380.0,110370.0,1e-08]
[1756789561232,5.93500876,110380.0,110370.0,1e-08]
[1756789561446,6.08839014,110380.0,110370.0,1e-08]
[1756789561657,6.08839815,110380.0,110370.0,1e-08]
[1756789562305,5.93503815,110380.0,110370.0,1e-08]
[1756789562536,6.08843809,110380.0,110370.0,1e-08]
[1756789564076,5.93503809,110380.0,110370.0,1e-08]
[1756789564246,5.92962575,110380.0,110370.0,0.00509001]
[1756789564672,5.93162575,110380.0,110370.0,1e-08]
[1756789564872,5.93167619,110380.0,110370.0,0.00509001]
[1756789565069,5.93167619,110380.0,110370.0,1e-08]
[1756789565331,6.04645292,110380.0,110370.0,1e-08]
[1756789565513,6.06739174,110380.0,110370.0,1e-08]
[1756789565715,6.13524809,110380.0,110370.0,1e-08]
[1756789566490,6.14371455,110380.0,110370.0,1e-08]
[1756789566723,6.14271455,110380.0,110370.0,1e-08]
[1756789567008,6.14371455,110380.0,110370.0,1e-08]
[1756789567217,6.14671455,110380.0,110370.0,1e-08]
[1756789567645,6.14371455,110380.0,110370.0,1e-08]
[1756789567888,6.14671455,110380.0,110370.0,1e-08]
[1756789568094,6.12385381,110380.0,110370.0,1e-08]
[1756789569823,0.52120866,110370.0,110360.0,0.00343]
[1756789570036,5.98454588,110370.0,110360.0,0.00351553]
[1756789570242,5.98651588,110370.0,110360.0,0.00561553]
[1756789570860,5.92184689,110370.0,110360.0,0.00561553]
[1756789571690,5.9153755,110370.0,110360.0,0.00561553]
[1756789571925,5.92384,110370.0,110360.0,0.00561553]
[1756789572955,5.92584,110370.0,110360.0,0.00561553]
[1756789573511,5.99556,110370.0,110360.0,0.00561553]
[1756789573767,6.04008338,110370.0,110360.0,0.00561553]
[1756789575017,6.04205338,110370.0,110360.0,0.00561553]
[1756789575227,6.04205374,110370.0,110360.0,0.00561553]
[1756789578764,6.0420577,110370.0,110360.0,0.00561553]
[1756789580634,6.0400877,110370.0,110360.0,0.00561553]
[1756789580866,5.99339432,110370.0,110360.0,0.00561553]
[1756789581516,5.99536432,110370.0,110360.0,0.00561553]
[1756789581753,5.99339432,110370.0,110360.0,0.00561553]
[1756789582162,5.9701162,110370.0,110360.0,0.00561553]
[1756789582421,5.99340309,110370.0,110360.0,0.00561553]
[1756789582631,6.08531908,110370.0,110360.0,0.00561553]
[1756789582841,6.08728908,110370.0,110360.0,0.00561553]
[1756789582969,5.99340309,110370.0,110360.0,0.00561553]
[1756789583426,5.99537309,110370.0,110360.0,0.00561553]
[1756789585306,5.99537309,110370.0,110360.0,0.00258553]
[1756789585986,5.99537309,110370.0,110360.0,0.00554553]
[1756789586753,5.99537309,110370.0,110360.0,0.00048553]
[1756789586953,6.08728908,110370.0,110360.0,0.00048553]
[1756789587625,6.08728908,110370.0,110360.0,0.00258553]
[1756789587833,6.08728908,110370.0,110360.0,0.00554553]
[1756789589859,6.07882112,110370.0,110360.0,0.00048553]
[1756789590095,6.08728978,110370.0,110360.0,0.00048553]
[1756789591570,6.06139752,110370.0,110360.0,0.00048553]
[1756789591787,6.06139752,110370.0,110360.0,0.00554553]
[1756789592018,6.06139752,110370.0,110360.0,0.00258553]
[1756789592227,6.06139752,110370.0,110360.0,0.00554553]
[1756789592562,6.06139752,110370.0,110360.0,0.00258553]
[1756789592773,6.0618854,110370.0,110360.0,0.00258553]
[1756789592980,6.0872901,110370.0,110360.0,0.00258553]
[1756789593201,6.0872901,110370.0,110360.0,0.00554553]
[1756789593970,5.77601252,110370.0,110360.0,0.00554553]
[1756789594172,5.95722118,110370.0,110360.0,0.00554553]
[1756789596991,5.95722118,110370.0,110360.0,0.00258553]
[1756789597207,5.95722118,110370.0,110360.0,0.00564553]
[1756789597416,5.95722118,110370.0,110360.0,0.00258553]
[1756789597620,6.04913717,110370.0,110360.0,0.00048553]
[1756789598301,6.04913717,110370.0,110360.0,0.00567553]
[1756789598530,6.04913717,110370.0,110360.0,0.00048553]
[1756789600064,6.05227717,110370.0,110360.0,0.00048553]
[1756789600288,0.46963882,110360.0,110350.0,0.3927634]
[1756789600511,0.5212415,110350.0,110340.0,0.0004]
[1756789600747,5.86774946,110350.0,110340.0,0.0004]
[1756789600948,5.93426927,110350.0,110340.0,0.0004]
[1756789601160,5.95414085,110350.0,110340.0,0.0004]
[1756789601371,5.95414085,110350.0,110340.0,0.00253]
[1756789601372,5.93120927,110350.0,110340.0,0.00253]
[1756789601636,6.02312526,110350.0,110340.0,0.0004]
[1756789602150,6.02512526,110350.0,110340.0,0.0004]
[1756789602398,5.87204526,110350.0,110340.0,0.00253]
[1756789602613,6.02516526,110350.0,110340.0,0.00253]
[1756789602820,5.93324927,110350.0,110340.0,0.00253]
[1756789603025,5.93324927,110350.0,110340.0,0.00559]
[1756789603240,5.93521406,110350.0,110340.0,0.00559]
[1756789603866,5.93521237,110350.0,110340.0,0.0004]
[1756789604074,6.02384592,110350.0,110340.0,0.0004]
[1756789604279,6.02712835,110350.0,110340.0,0.0004]
[1756789604913,5.87400835,110350.0,110340.0,0.0004]
[1756789605122,6.02728835,110350.0,110340.0,0.0004]
[1756789605333,5.87400835,110350.0,110340.0,0.0004]
[1756789605554,6.02728835,110350.0,110340.0,0.0004]
[1756789606007,6.02523835,110350.0,110340.0,0.00559]
[1756789606205,5.93530236,110350.0,110340.0,0.00559]
[1756789606868,5.93530236,110350.0,110340.0,0.0004]
[1756789607300,5.78202236,110350.0,110340.0,0.0004]
[1756789607508,5.93530236,110350.0,110340.0,0.00559]
[1756789608556,5.93530236,110350.0,110340.0,0.00253]
[1756789608956,5.98437127,110350.0,110340.0,0.00253]
[1756789609297,5.98437127,110350.0,110340.0,0.00559]
[1756789609918,5.98750127,110350.0,110340.0,0.0004]
[1756789610163,5.98437127,110350.0,110340.0,0.00559]
[1756789610370,6.01688968,110350.0,110340.0,0.00559]
[1756789610578,6.01688968,110350.0,110340.0,0.0004]
[1756789611426,6.01772968,110350.0,110340.0,0.0004]
[1756789612900,5.81454077,110350.0,110340.0,0.0004]
[1756789613262,5.96862077,110350.0,110340.0,0.0004]
[1756789613509,5.96858077,110350.0,110340.0,0.0004]
[1756789613735,5.9685523,110350.0,110340.0,0.0004]
[1756789614352,5.96854243,110350.0,110340.0,0.0004]
[1756789614767,5.98746852,110350.0,110340.0,0.0004]
[1756789616305,5.83342852,110350.0,110340.0,0.0004]
[1756789616511,5.98738852,110350.0,110340.0,0.0004]
[1756789617567,5.96846243,110350.0,110340.0,0.0004]
[1756789618539,5.81450243,110350.0,110340.0,0.00253]
[1756789618748,5.91838243,110350.0,110340.0,0.00559]
[1756789619239,5.76450243,110350.0,110340.0,0.00559]
[1756789619469,5.91838243,110350.0,110340.0,0.00559]
[1756789620080,5.76252243,110350.0,110340.0,0.00559]
[1756789620293,5.91636243,110350.0,110340.0,0.00559]
[1756789620729,5.91002653,110350.0,110340.0,0.00559]
[1756789620952,5.88384925,110350.0,110340.0,0.00559]
[1756789621603,5.91636766,110350.0,110340.0,0.00559]
[1756789621832,5.99674939,110350.0,110340.0,0.00559]
[1756789622526,5.91636766,110350.0,110340.0,0.00559]
[1756789622740,5.88384925,110350.0,110340.0,0.00559]
[1756789623252,5.86908165,110350.0,110340.0,0.00559]
[1756789623466,5.91640352,110350.0,110340.0,0.00559]
[1756789624093,5.91640434,110350.0,110340.0,0.00559]
[1756789624757,6.00824033,110350.0,110340.0,0.00559]
[1756789624960,5.91632434,110350.0,110340.0,0.00559]
[1756789626367,0.75621918,110350.0,110340.0,0.00559]
[1756789626581,0.90144006,110350.0,110340.0,0.00559]
[1756789626780,0.86892165,110350.0,110340.0,0.00559]
[1756789627404,5.86892165,110350.0,110340.0,0.00559]
[1756789628716,5.8793682,110350.0,110340.0,0.0004]
[1756789629437,5.8793682,110350.0,110340.0,0.00243]
[1756789629696,5.8793682,110350.0,110340.0,0.00541]
[1756789630258,5.96475011,110350.0,110340.0,0.0004]
[1756789630525,5.91823864,110350.0,110340.0,0.0004]
[1756789631174,5.91823864,110350.0,110340.0,0.00541]
[1756789632286,5.54572023,110350.0,110340.0,0.00541]
[1756789632500,5.54374023,110350.0,110340.0,0.00541]
[1756789633374,5.51299587,110350.0,110340.0,0.00541]
[1756789633834,5.51304613,110350.0,110340.0,0.00541]
[1756789634346,5.35936613,110350.0,110340.0,0.00541]
[1756789634565,0.51340613,110350.0,110340.0,0.00541]
[1756789634780,0.51340613,110350.0,110340.0,0.0004]
[1756789634781,5.54779752,110350.0,110340.0,0.0004]
[1756789635005,5.54611962,110350.0,110340.0,0.0004]
[1756789635222,5.39207962,110350.0,110340.0,0.00541]
[1756789635464,0.5112894,110350.0,110340.0,0.00541]
[1756789635677,0.51975606,110350.0,110340.0,0.00541]
[1756789636012,0.51340625,110350.0,110340.0,0.00541]
[1756789636196,0.50493959,110350.0,110340.0,0.00541]
[1756789636466,0.5197571,110350.0,110340.0,0.00541]
[1756789636676,0.50494016,110350.0,110340.0,0.00541]
[1756789636913,0.33396651,110350.0,110340.0,0.00541]
[1756789637129,0.46203425,110350.0,110340.0,0.00541]
[1756789638047,0.46003425,110350.0,110340.0,0.00541]
[1756789638267,0.46203425,110350.0,110340.0,0.00541]
[1756789638693,0.46207425,110350.0,110340.0,0.00541]
[1756789638918,0.46003425,110350.0,110340.0,0.00541]
[1756789640347,0.55215826,110350.0,110340.0,0.00541]
[1756789640562,0.19265131,110350.0,110340.0,0.18666793]
[1756789640781,0.34761131,110350.0,110340.0,0.18666793]
[1756789641235,0.34661131,110350.0,110340.0,0.18666793]
[1756789641465,0.34761131,110350.0,110340.0,0.18666793]
[1756789641914,0.34761131,110350.0,110340.0,0.00541]
[1756789642134,0.34761131,110350.0,110340.0,0.00741]
[1756789642367,0.80739956,110350.0,110340.0,0.0024]
[1756789642614,5.88290367,110350.0,110340.0,0.0024]
[1756789642834,5.87130546,110350.0,110340.0,0.0024]
[1756789643053,5.90269354,110350.0,110340.0,0.0024]
[1756789643310,5.94155407,110350.0,110340.0,0.0024]
[1756789643547,5.91862249,110350.0,110340.0,0.0024]
[1756789643798,5.91762249,110350.0,110340.0,0.0024]
[1756789644005,5.96878037,110350.0,110340.0,0.0024]
[1756789644193,5.97078037,110350.0,110340.0,0.0024]
[1756789644616,5.91770249,110350.0,110340.0,0.0024]
[1756789645074,5.91970249,110350.0,110340.0,0.0024]
[1756789645293,5.91970249,110350.0,110340.0,0.0004]
[1756789645726,5.92070249,110350.0,110340.0,0.0004]
[1756789646231,5.92070239,110350.0,110340.0,0.0004]
[1756789646445,5.92070355,110350.0,110340.0,0.0004]
[1756789649320,5.85544954,110350.0,110340.0,0.0004]
[1756789649526,5.91749355,110350.0,110340.0,0.0004]
[1756789649749,5.76353355,110350.0,110340.0,0.00541]
[1756789649969,0.8422631,110350.0,110340.0,0.00541]
[1756789650185,0.6883431,110350.0,110340.0,0.00541]
[1756789650639,0.8423031,110350.0,110340.0,0.00541]
[1756789651289,0.6883431,110350.0,110340.0,0.00541]
[1756789651540,0.8423831,110350.0,110340.0,0.00541]
[1756789651773,0.79809777,110350.0,110340.0,0.00541]
[1756789653105,0.79909777,110350.0,110340.0,0.00541]
[1756789655927,0.55314178,110350.0,110340.0,0.00541]
[1756789656343,0.70730178,110350.0,110340.0,0.00541]
[1756789656752,0.70630178,110350.0,110340.0,0.00541]
[1756789657381,0.70730178,110350.0,110340.0,0.00541]
[1756789657826,0.70630178,110350.0,110340.0,0.00541]
[1756789658656,0.70634178,110350.0,110340.0,0.00541]
[1756789659944,0.70734178,110350.0,110340.0,0.00541]
[1756789660356,0.70634178,110350.0,110340.0,0.00541]
[1756789660557,0.70734178,110350.0,110340.0,0.00541]
[1756789661099,0.70944178,110350.0,110340.0,0.00541]
[1756789661745,0.70734178,110350.0,110340.0,0.00541]
[1756789661969,0.70944178,110350.0,110340.0,0.00541]
[1756789662198,0.76451092,110350.0,110340.0,0.0004]
[1756789662421,0.83020003,110350.0,110340.0,0.0004]
[1756789662637,5.83020003,110350.0,110340.0,0.0004]
[1756789662858,5.90289554,110350.0,110340.0,0.0004]
[1756789663075,5.99559467,110350.0,110340.0,0.0004]
[1756789663709,5.97867107,110350.0,110340.0,0.0004]
[1756789663915,5.99559212,110350.0,110340.0,0.0004]
[1756789664137,5.96230769,110350.0,110340.0,0.0004]
[1756789664905,5.93936901,110350.0,110340.0,0.0004]
[1756789666000,5.9315932,110350.0,110340.0,0.0004]
[1756789666407,5.91104281,110350.0,110340.0,0.0004]
[1756789667272,5.87931442,110350.0,110340.0,0.0004]
[1756789667490,6.00295144,110350.0,110340.0,0.0004]
[1756789670454,5.91103545,110350.0,110340.0,0.0004]
[1756789670678,0.23008887,110340.0,110330.0,0.0004]
[1756789670900,5.62273382,110340.0,110330.0,0.0004]
[1756789671086,5.60484514,110340.0,110330.0,0.0004]
[1756789671290,5.60847914,110340.0,110330.0,0.0004]
[1756789672264,5.6183292,110340.0,110330.0,0.0024]
[1756789672448,5.60847914,110340.0,110330.0,0.0024]
[1756789676147,5.60552914,110340.0,110330.0,0.0024]
[1756789677658,5.58860838,110340.0,110330.0,0.0024]
[1756789677870,5.60551477,110340.0,110330.0,0.0024]
[1756789678489,5.59917344,110340.0,110330.0,0.0024]
[1756789678628,5.5991718,110340.0,110330.0,0.0024]
[1756789680886,5.4437318,110340.0,110330.0,0.00771]
[1756789681104,5.5989718,110340.0,110330.0,0.00771]
[1756789681309,5.5989718,110340.0,110330.0,0.0024]
[1756789681517,5.6019218,110340.0,110330.0,0.0024]
[1756789681726,5.5989718,110340.0,110330.0,0.0024]
[1756789681949,5.64925972,110340.0,110330.0,0.0024]
[1756789682166,5.64921972,110340.0,110330.0,0.0024]
[1756789682783,5.59893073,110340.0,110330.0,0.0024]
[1756789683211,5.59909073,110340.0,110330.0,0.0024]
[1756789683420,5.44373073,110340.0,110330.0,0.0024]
[1756789683623,5.59909073,110340.0,110330.0,0.0024]
[1756789685536,5.44373073,110340.0,110330.0,0.0024]
[1756789685753,5.59897073,110340.0,110330.0,0.0024]
[1756789686142,5.60198073,110340.0,110330.0,0.0024]
[1756789686585,5.59897073,110340.0,110330.0,0.0024]
[1756789687141,5.5820616,110340.0,110330.0,0.0024]
[1756789687321,5.59898418,110340.0,110330.0,0.0024]
[1756789687498,5.60532933,110340.0,110330.0,0.0024]
[1756789689269,5.66028272,110340.0,110330.0,0.0024]
[1756789689509,5.60532933,110340.0,110330.0,0.0024]
[1756789690564,5.63784774,110340.0,110330.0,0.0024]
[1756789690897,5.63785649,110340.0,110330.0,0.0024]
[1756789691545,5.61349903,110340.0,110330.0,0.0024]
[1756789691938,5.61650903,110340.0,110330.0,0.0024]
[1756789692385,5.70842502,110340.0,110330.0,0.0024]
[1756789692812,5.61349903,110340.0,110330.0,0.0024]
[1756789697811,5.60460284,110340.0,110330.0,0.00738]
[1756789698027,5.60460284,110340.0,110330.0,0.0024]
[1756789698238,5.61308101,110340.0,110330.0,0.0024]
[1756789698910,0.61308147,110340.0,110330.0,0.0024]
[1756789700073,5.61308147,110340.0,110330.0,0.0024]
[1756789701615,5.61308429,110340.0,110330.0,0.0024]
[1756789702787,0.96997435,110330.0,110320.0,0.00048]
[1756789703002,6.39434071,110330.0,110320.0,1e-08]
[1756789703221,6.39269768,110330.0,110320.0,1e-08]
[1756789703435,6.41858994,110330.0,110320.0,1e-08]
[1756789703655,6.38304493,110330.0,110320.0,1e-08]
[1756789703868,6.53768493,110330.0,110320.0,1e-08]
[1756789704051,6.53768493,110330.0,110320.0,0.00014159]
[1756789704211,6.53868493,110330.0,110320.0,0.00014159]
[1756789704415,6.51279267,110330.0,110320.0,1e-08]
[1756789704634,0.20718304,110320.0,110310.0,0.0004]
[1756789704838,5.53749983,110320.0,110310.0,0.00048549]
[1756789705039,5.60299521,110320.0,110310.0,0.00048549]
[1756789705244,5.54260983,110320.0,110310.0,0.00048549]
[1756789705446,5.56699555,110320.0,110310.0,0.00048549]
[1756789705659,5.41239555,110320.0,110310.0,0.00048549]
[1756789705869,5.59425555,110320.0,110310.0,0.00048549]
[1756789706088,5.43652555,110320.0,110310.0,0.00048549]
[1756789706298,5.59108555,110320.0,110310.0,0.00048549]
[1756789706691,5.59308555,110320.0,110310.0,0.00048549]
[1756789707092,5.68500154,110320.0,110310.0,0.00048549]
[1756789707381,5.65248644,110320.0,110310.0,0.00048549]
[1756789707581,5.65348644,110320.0,110310.0,0.00048549]
[1756789708582,5.65333359,110320.0,110310.0,0.00048549]
[1756789709026,5.65329359,110320.0,110310.0,0.00546549]
[1756789709281,0.39861313,110320.0,110310.0,0.00546549]
[1756789709506,0.47739725,110320.0,110310.0,0.00546549]
[1756789710572,0.52866796,110320.0,110310.0,0.00546549]
[1756789710782,0.55305368,110320.0,110310.0,0.00546549]
[1756789711392,0.55301368,110320.0,110310.0,0.00546549]
[1756789713821,0.55499368,110320.0,110310.0,0.00246549]
[1756789714063,0.55499368,110320.0,110310.0,0.00048549]
[1756789714557,0.55499368,110320.0,110310.0,0.00348549]
[1756789714812,0.55499368,110320.0,110310.0,0.00546549]
[1756789715791,0.55499317,110320.0,110310.0,0.00546549]
[1756789719142,0.39861341,110320.0,110310.0,0.00546549]
[1756789719358,0.55277341,110320.0,110310.0,0.00546549]
[1756789721097,0.39861341,110320.0,110310.0,0.00546549]
[1756789721316,0.55281341,110320.0,110310.0,0.00546549]
[1756789721525,0.62253341,110320.0,110310.0,0.00546549]
[1756789721964,0.46833341,110320.0,110310.0,0.00546549]
[1756789722176,0.62249341,110320.0,110310.0,0.00546549]
[1756789724932,0.60557462,110320.0,110310.0,0.00546549]
[1756789725572,0.45141462,110320.0,110310.0,0.00546549]
[1756789725812,0.60549462,110320.0,110310.0,0.00546549]
[1756789726050,0.60545462,110320.0,110310.0,0.00546549]
[1756789726295,0.45141462,110320.0,110310.0,0.00546549]
[1756789726423,0.60545462,110320.0,110310.0,0.00546549]
[1756789726624,0.45141462,110320.0,110310.0,0.00546549]
[1756789726847,0.60541462,110320.0,110310.0,0.00546549]
[1756789729477,0.60542286,110320.0,110310.0,0.00546549]
[1756789729686,0.62235813,110320.0,110310.0,0.00546549]
[1756789730314,0.6138905,110320.0,110310.0,0.00546549]
[1756789730458,0.40153578,110320.0,110310.0,0.00546549]
[1756789730664,0.58282657,110320.0,110310.0,0.00546549]
[1756789730866,5.58482657,110320.0,110310.0,0.00048549]
[1756789731299,5.43082657,110320.0,110310.0,0.00247549]
[1756789731501,5.58474657,110320.0,110310.0,0.00544549]
[1756789731696,5.58474657,110320.0,110310.0,0.00247549]
[1756789731902,5.58474657,110320.0,110310.0,1e-08]
[1756789731903,5.97953364,110320.0,110310.0,1e-08]
[1756789732102,5.98766302,110320.0,110310.0,1e-08]
[1756789733870,5.95545044,110320.0,110310.0,1e-08]
[1756789734703,5.95541044,110320.0,110310.0,1e-08]
[1756789735079,5.95541044,110320.0,110310.0,0.00199001]
[1756789735481,5.95541044,110320.0,110310.0,1e-08]
[1756789735884,5.95541044,110320.0,110310.0,0.00199001]
[1756789735885,5.80157044,110320.0,110310.0,0.00199001]
[1756789736070,0.95341044,110320.0,110310.0,0.00496001]
[1756789736228,0.95541044,110320.0,110310.0,0.00496001]
[1756789736422,0.95541044,110320.0,110310.0,0.00199001]
[1756789736649,0.95541044,110320.0,110310.0,1e-08]
[1756789737048,0.80157044,110320.0,110310.0,1e-08]
[1756789737253,0.95541044,110320.0,110310.0,1e-08]
[1756789738274,0.80157044,110320.0,110310.0,0.00199001]
[1756789738484,0.95537044,110320.0,110310.0,0.00496001]
[1756789738691,0.95537044,110320.0,110310.0,1e-08]
[1756789739941,0.93843502,110320.0,110310.0,1e-08]
[1756789740162,0.95537583,110320.0,110310.0,0.00199001]
[1756789740377,0.98589093,110320.0,110310.0,0.00496001]
[1756789740571,0.98789093,110320.0,110310.0,0.00496001]
[1756789740811,0.83409093,110320.0,110310.0,0.00496001]
[1756789741006,0.98781093,110320.0,110310.0,0.00496001]
[1756789742459,0.98781123,110320.0,110310.0,0.00496001]
[1756789742886,0.98781123,110320.0,110310.0,1e-08]
[1756789743152,1.05844588,110320.0,110310.0,1e-08]
[1756789743358,6.09763284,110320.0,110310.0,1e-08]
[1756789743563,6.11857166,110320.0,110310.0,1e-08]
[1756789743765,6.06981884,110320.0,110310.0,1e-08]
[1756789744166,6.11981884,110320.0,110310.0,1e-08]
[1756789744398,6.16858336,110320.0,110310.0,1e-08]
[1756789746136,6.05375813,110320.0,110310.0,1e-08]
[1756789747289,6.05377076,110320.0,110310.0,1e-08]
[1756789747496,6.00377076,110320.0,110310.0,1e-08]
[1756789747744,6.05377076,110320.0,110310.0,1e-08]
[1756789747916,6.05369076,110320.0,110310.0,1e-08]
[1756789749368,6.0536635,110320.0,110310.0,1e-08]
[1756789752151,6.14557949,110320.0,110310.0,1e-08]
[1756789752572,6.0536635,110320.0,110310.0,1e-08]
[1756789755895,6.0505535,110320.0,110310.0,1e-08]
[1756789756103,6.0535935,110320.0,110310.0,1e-08]
[1756789759948,6.03878496,110320.0,110310.0,1e-08]
[1756789760115,6.05359556,110320.0,110310.0,1e-08]
[1756789760782,6.120582,110320.0,110310.0,1e-08]
[1756789760989,6.620582,110320.0,110310.0,1e-08]
[1756789762573,6.59468974,110320.0,110310.0,1e-08]
[1756789763001,6.5277033,110320.0,110310.0,1e-08]
[1756789764179,6.55359556,110320.0,110310.0,1e-08]
[1756789765394,6.55259556,110320.0,110310.0,1e-08]
[1756789765847,6.55459556,110320.0,110310.0,1e-08]
[1756789766669,6.57555185,110320.0,110310.0,1e-08]
[1756789766881,6.57655185,110320.0,110310.0,1e-08]
[1756789767193,6.66846784,110320.0,110300.0,0.00077092]
[1756789767401,0.5213401,110290.0,110280.0,0.0004]
[1756789767606,5.90565261,110290.0,110280.0,0.0004]
[1756789767806,5.77818487,110290.0,110280.0,0.00259139]
[1756789768034,5.93357487,110290.0,110280.0,0.00259139]
[1756789768242,5.96721403,110290.0,110280.0,0.00054139]
[1756789768455,5.97022943,110290.0,110280.0,0.00054139]
[1756789768657,6.00274118,110290.0,110280.0,0.00054139]
[1756789768808,5.97835737,110290.0,110280.0,0.00054139]
[1756789769799,6.47835737,110290.0,110280.0,0.00054139]
[1756789769964,6.57027336,110290.0,110280.0,0.00154139]
[1756789770379,6.55334695,110290.0,110280.0,0.00054139]
[1756789770587,6.47935877,110290.0,110280.0,0.00054139]
[1756789770789,6.32599877,110290.0,110280.0,0.00054139]
[1756789770991,0.18137299,110270.0,110260.0,0.0004]
[1756789771192,0.18138944,110260.0,110250.0,0.0024]
[1756789771526,0.55720783,110260.0,110250.0,0.00539]
[1756789771649,0.58447983,110260.0,110250.0,0.00744]
[1756789772314,0.43111983,110260.0,110250.0,0.00744]
[1756789772471,0.58447983,110260.0,110250.0,0.00744]
[1756789772671,0.43111983,110260.0,110250.0,0.00744]
[1756789772877,0.58447983,110260.0,110250.0,0.00744]
[1756789773515,0.58447983,110260.0,110250.0,0.00844]
[1756789773933,0.56755152,110260.0,110250.0,0.00844]
[1756789774413,0.54320053,110260.0,110250.0,0.00844]
[1756789776334,0.56909279,110260.0,110250.0,0.00844]
[1756789777792,0.41573279,110260.0,110250.0,0.00844]
[1756789778004,0.29792454,110260.0,110250.0,0.00844]
[1756789778238,0.40450944,110260.0,110250.0,0.18984589]
[1756789779309,0.25114944,110260.0,110250.0,0.18984589]
[1756789779520,0.40450944,110260.0,110250.0,0.18984589]
[1756789779727,0.25114944,110260.0,110250.0,0.18984589]
[1756789779935,0.40450944,110260.0,110250.0,0.18984589]
[1756789780546,0.22312,110260.0,110250.0,0.18984589]
[1756789780792,0.25114944,110260.0,110250.0,0.18984589]
[1756789780995,0.22312,110260.0,110250.0,0.18984589]
[1756789782240,0.22312,110260.0,110250.0,0.18884589]
[1756789782440,0.22312,110260.0,110250.0,0.19184589]
[1756789782840,0.22312,110260.0,110250.0,0.19084589]
[1756789783045,0.40450944,110260.0,110250.0,0.19584589]
[1756789783253,0.22312,110260.0,110250.0,0.19584589]
[1756789783890,0.22312,110260.0,110250.0,0.19384589]
[1756789784177,0.22312,110260.0,110250.0,0.19684589]
[1756789787624,0.40450944,110260.0,110250.0,0.19684589]
[1756789794710,0.22312,110260.0,110250.0,0.19684589]
[1756789795347,0.40450944,110260.0,110250.0,0.19684589]
[1756789795769,0.22312,110260.0,110250.0,0.19684589]
[1756789796518,0.40450944,110260.0,110250.0,0.19684589]
[1756789796820,0.22312,110260.0,110250.0,0.19684589]
[1756789797361,0.40450944,110260.0,110250.0,0.19684589]
[1756789797580,0.22312,110260.0,110250.0,0.19684589]
[1756789798403,0.15336,110260.0,110250.0,0.19684589]
[1756789798621,0.15336,110260.0,110250.0,0.28876188]
[1756789798838,0.61838354,110280.0,110270.0,0.18137299]
[1756789798839,0.59111654,110280.0,110270.0,0.18137299]
[1756789799028,0.74515654,110280.0,110270.0,0.18871015]
[1756789799201,0.59111654,110280.0,110270.0,0.18644299]
[1756789799406,0.74515654,110280.0,110270.0,0.18644299]
[1756789800250,0.74515654,110280.0,110270.0,0.18944299]
[1756789800617,0.74714654,110280.0,110270.0,0.00807]
[1756789800820,0.74714654,110280.0,110270.0,0.00413]
[1756789801234,0.74714654,110280.0,110270.0,0.00613]
[1756789801540,0.75028654,110280.0,110270.0,0.00413]
[1756789801900,0.75028654,110280.0,110270.0,0.005]
[1756789803562,0.75028654,110280.0,110270.0,0.003]
[1756789804394,0.76977726,110280.0,110270.0,0.004]
[1756789804641,0.76977726,110280.0,110270.0,0.001]
[1756789804873,0.76977726,110280.0,110270.0,0.003]
[1756789805075,0.76977726,110280.0,110270.0,0.00526716]
[1756789806002,0.61573726,110280.0,110270.0,0.00526716]
[1756789806247,0.76663726,110280.0,110270.0,0.19200015]
[1756789806460,0.61259726,110280.0,110270.0,0.00836]
[1756789806636,0.61259726,110280.0,110270.0,0.00741716]
[1756789806854,0.76663726,110280.0,110270.0,0.00741716]
[1756789807463,0.61259726,110280.0,110270.0,0.00741716]
[1756789807676,0.76663726,110280.0,110270.0,0.00741716]
[1756789808027,0.76663726,110280.0,110270.0,0.01062716]
[1756789808244,0.76663726,110280.0,110270.0,0.00741716]
[1756789808464,0.76956726,110280.0,110270.0,0.18879015]
[1756789808646,0.76956726,110280.0,110270.0,0.18652299]
[1756789808888,0.79683026,110280.0,110270.0,0.18652299]
[1756789809458,0.79683026,110280.0,110270.0,0.00515]
[1756789809679,0.79683026,110280.0,110270.0,0.00741716]
[1756789809910,0.11651372,110280.0,110270.0,0.18879015]
[1756789810131,0.40511654,110280.0,110270.0,0.18973299]
[1756789810613,0.40507654,110280.0,110270.0,0.18973299]
[1756789815458,0.22364,110280.0,110270.0,0.18973299]
[1756789815686,0.02740305,110290.0,110280.0,0.18135654]
[1756789815910,0.17345177,110290.0,110280.0,0.18362349]
[1756789816125,0.17349177,110290.0,110280.0,0.18898349]
[1756789816347,0.17349177,110290.0,110280.0,0.18671654]
[1756789816348,0.15398105,110290.0,110280.0,0.18671654]
[1756789817002,0.00014105,110290.0,110280.0,0.18771654]
[1756789817192,0.15398105,110290.0,110280.0,0.18771654]
[1756789817453,0.15402105,110290.0,110280.0,0.18771654]
[1756789818561,0.00014105,110290.0,110280.0,0.18671654]
[1756789818804,0.00014105,110290.0,110280.0,0.19071654]
[1756789819029,0.15406105,110290.0,110280.0,0.18971654]
[1756789819450,0.15406105,110290.0,110280.0,0.19171654]
[1756789820166,0.15406105,110290.0,110280.0,0.19571654]
[1756789820882,0.00014105,110290.0,110280.0,0.19571654]
[1756789828591,0.00788812,110300.0,110290.0,0.1813401]
[1756789828809,0.01002365,110300.0,110290.0,0.18360685]
[1756789829017,0.01002365,110300.0,110290.0,0.18575685]
[1756789829570,0.01002365,110300.0,110290.0,0.18875685]
[1756789829765,0.01002365,110300.0,110290.0,0.1864901]
[1756789829966,0.15372553,110300.0,110290.0,0.1937001]
[1756789831573,0.15577553,110300.0,110290.0,0.1904901]
[1756789832081,0.15577553,110300.0,110290.0,0.1937001]
[1756789832554,0.15565553,110300.0,110290.0,0.1937001]
[1756789832783,0.33697919,110300.0,110290.0,0.1904901]
[1756789832997,0.33990919,110300.0,110290.0,0.1904901]
[1756789834295,0.33990919,110300.0,110290.0,0.1883401]
[1756789834499,0.33990919,110300.0,110290.0,0.1904901]
[1756789835205,0.33990919,110300.0,110290.0,0.1883401]
[1756789835424,0.15858553,110300.0,110290.0,0.1904501]
[1756789836267,0.33990919,110300.0,110290.0,0.1883401]
[1756789836458,0.33697919,110300.0,110290.0,0.1904501]